lending/lending_fUSD_20240219
["ID","MTS","AMOUNT","RATE_DAILY","PERIOD"]
[314426012,1708332641663,-569.01714749,0.00040729,4]
[314426013,1708332641673,-500.0,0.00040729,4]
[314426014,1708332641682,-557.48506639,0.00040729,4]
[314426015,1708332641691,-542.48851131,0.00040729,4]
[314426016,1708332641700,-556.9745787,0.00040729,4]
[314426017,1708332641709,-824.83,0.00040733,2]
[314426018,1708332641719,-303.62,0.000408,2]
[314426019,1708332641728,-500.0,0.00040885,2]
[314426020,1708332641738,-206.84301561,0.00040891,2]
[314426021,1708332641747,-313.21,0.00040899,2]
[314426022,1708332641757,-1000.0,0.000409,15]
[314426023,1708332641767,-500.0,0.00040956,21]
[314426024,1708332641777,-200.0,0.00040987,20]
[314426025,1708332641786,-200.0,0.00040987,15]
[314426026,1708332641795,-1986.80624195,0.00040997,2]
[314426027,1708332641805,-27231.94986939,0.00041,120]
[314426028,1708332641814,-300.697826,0.00041,3]
[314426029,1708332641824,-158.87,0.00041069,2]
[314426030,1708332641834,-2251.74554326,0.00041095,2]
[314426031,1708332641843,-500.0,0.00041096,2]
[314426032,1708332641853,-183.0,0.00041096,2]
[314426033,1708332641862,-193.37,0.00041097,2]
[314426034,1708332641871,-656.06,0.000411,2]
[314426035,1708332641879,-656.06,0.000411,2]
[314426036,1708332641888,-656.06,0.000411,2]
[314426037,1708332641897,-656.06,0.000411,2]
[314426038,1708332641907,-223.29795655,0.00041183,120]
[314426039,1708332641916,-169.21,0.00041184,2]
[314426040,1708332641925,-1000.0,0.000412,15]
[314426041,1708332641934,-5000.6,0.00041225,2]
[314426042,1708332641944,-157.0,0.00041285,7]
[314426043,1708332641953,-180.0,0.000413,2]
[314426044,1708332641965,-500.0,0.00041307,7]
[314426045,1708332641974,-165.770455,0.0004137,14]
[314426046,1708332641984,-150.0,0.00041384,2]
[314426047,1708332641995,-153.3098307,0.00041398,30]
[314426048,1708332642004,-206.84301561,0.00041449,2]
[314426049,1708332642013,-889.62652836,0.00041479,5]
[314426050,1708332642023,-5670.08192709,0.00041503,3]
[314426051,1708332642033,-534.98475747,0.00041504,21]
[314426052,1708332642043,-500.0,0.00041517,7]
[314426053,1708332642052,-152.46,0.00041543,2]
[314426054,1708332642062,-303.62,0.000416,2]
[314426055,1708332642071,-500.0,0.00041728,7]
[314426056,1708332642081,-3015.45,0.00041902,2]
[314426057,1708332642090,-500.0,0.00041939,7]
[314426058,1708332642099,-200.0,0.00041987,21]
[314426059,1708332642109,-200.0,0.00041987,16]
[314426060,1708332642119,-160.0,0.00042,77]
[314426061,1708332642129,-1287.3593,0.00042,59]
[314426062,1708332642138,-200.0,0.00042,2]
[314426063,1708332642148,-200.0,0.00042,2]
[314426064,1708332642158,-1000.0,0.00042,7]
[314426065,1708332642168,-1281.303789,0.00042,2]
[314426066,1708332642178,-300.697826,0.00042,4]
[314426067,1708332642187,-206.84301561,0.00042008,2]
[314426068,1708332642197,-465.94,0.00042092,15]
[314426069,1708332642207,-553.53,0.00042149,2]
[314426070,1708332642217,-500.0,0.0004215,7]
[314426071,1708332642228,-165.770455,0.00042192,14]
[314426072,1708332642239,-824.83,0.00042205,2]
[314426073,1708332642249,-521.06,0.00042262,2]
[314426074,1708332642258,-5000.0,0.00042298,3]
[314426075,1708332642269,-500.0,0.0004236,7]
[314426077,1708332642278,-150.0,0.00042394,2]
[314426078,1708332642288,-153.3098307,0.00042398,30]
[314426079,1708332642298,-303.62,0.000424,2]
[314426080,1708332642307,-189.03109604,0.00042417,16]
[314426081,1708332642316,-5000.6,0.0004245,2]
[314426082,1708332642326,-251.82,0.00042466,2]
[314426083,1708332642336,-223.29795655,0.00042466,120]
[314426084,1708332642346,-1753.0,0.0004249,3]
[314426085,1708332642355,-402.0,0.0004249,3]
[314426087,1708332642365,-150.0,0.0004249,2]
[314426088,1708332642374,-150.0,0.0004249,2]
[314426089,1708332642384,-150.0,0.0004249,2]
[314426090,1708332642393,-656.06,0.00042492,2]
[314426091,1708332642402,-122636.55049652,0.00042502,3]
[314426092,1708332642411,-89366.6618067,0.00042502,9]
[314426093,1708332642421,-500.0,0.00042512,4]
[314426094,1708332642553,-610.41,0.00042512,4]
[314426095,1708332642563,-500.0,0.00042512,4]
[314426096,1708332642572,-295.12924329,0.00042512,4]
[314426097,1708332642581,-154.32766975,0.00042517,16]
[314426098,1708332642590,-446.47,0.00042536,2]
[314426099,1708332642600,-313.21,0.00042542,2]
[314426100,1708332642609,-5670.08192709,0.0004256,4]
[314426101,1708332642618,-206.84301561,0.00042566,2]
[314426102,1708332642628,-500.0,0.00042571,7]
[314426103,1708332642638,-2434.60377005,0.000427,120]
[314426104,1708332642647,-500.0,0.00042782,7]
[314426105,1708332642656,-1006.29,0.00042888,60]
[314426106,1708332642666,-656.06,0.0004298,2]
[314426107,1708332642676,-200.0,0.00042987,22]
[314426108,1708332642685,-89366.6618067,0.0004299,10]
[314426109,1708332642694,-500.0,0.00042993,7]
[314426110,1708332642704,-185.0,0.00043,90]
[314426111,1708332642714,-1997.42,0.00043,4]
[314426112,1708332642723,-1997.42,0.00043,4]
[314426113,1708332642733,-1997.42,0.00043,4]
[314426114,1708332642744,-1997.42,0.00043,4]
[314426115,1708332642754,-1997.42,0.00043,4]
[314426116,1708332642764,-1997.42,0.00043,4]
[314426117,1708332642773,-1997.42,0.00043,4]
[314426118,1708332642782,-1997.42,0.00043,4]
[314426119,1708332642792,-1997.42,0.00043,4]
[314426120,1708332642802,-1997.42,0.00043,4]
[314426121,1708332642811,-1997.42,0.00043,4]
[314426122,1708332642821,-1997.42,0.00043,4]
[314426123,1708332642830,-1997.42,0.00043,4]
[314426124,1708332642839,-1997.42,0.00043,4]
[314426125,1708332642849,-1997.42,0.00043,4]
[314426126,1708332642858,-1997.42,0.00043,4]
[314426127,1708332642868,-1997.42,0.00043,4]
[314426128,1708332642877,-1997.42,0.00043,4]
[314426129,1708332642887,-1997.42,0.00043,4]
[314426130,1708332642896,-1997.42,0.00043,4]
[314426132,1708332642905,-4611.15060352,0.00043,30]
[314426134,1708332642914,-500.0,0.00043,14]
[314426136,1708332642924,-152.82,0.00043,4]
[314426138,1708332642933,-152.82,0.00043,4]
[314426140,1708332642942,-152.82,0.00043,4]
[314426142,1708332642952,-152.82,0.00043,4]
[314426144,1708332642965,-152.82,0.00043,4]
[314426146,1708332642974,-152.82,0.00043,4]
[314426148,1708332642983,-152.82,0.00043,4]
[314426150,1708332642994,-152.82,0.00043,4]
[314426151,1708332643004,-226.0,0.00043,90]
[314426152,1708332643012,-300.697826,0.00043,4]
[314426153,1708332643022,-226.0,0.00043014,90]
[314426154,1708332643030,-165.770455,0.00043014,14]
[314426155,1708332643040,-889.62652836,0.00043058,5]
[314426156,1708332643049,-206.84301561,0.00043125,2]
[314426157,1708332643057,-1000.0,0.000432,10]
[314426158,1708332643066,-303.62,0.000432,2]
[314426159,1708332643075,-500.0,0.00043203,7]
[314426160,1708332643084,-153.3098307,0.00043398,30]
[314426161,1708332643093,-150.0,0.00043403,2]
[314426162,1708332643102,-500.0,0.00043414,7]
[314426163,1708332643111,-152.46,0.00043432,2]
[314426165,1708332643121,-151.0,0.00043432,2]
[314426167,1708332643130,-250.49088,0.00043432,2]
[314426169,1708332643139,-200.0,0.000436,18]
[314426171,1708332643148,-5670.08192709,0.00043617,5]
[314426173,1708332643158,-500.0,0.00043625,7]
[314426175,1708332643167,-7525.929086,0.00043675,2]
[314426177,1708332643176,-824.83,0.00043677,2]
[314426179,1708332643186,-206.84301561,0.00043683,2]
[314426181,1708332643195,-208.0,0.00043768,11]
[314426183,1708332643205,-180.66550919,0.00043816,11]
[314426185,1708332643214,-800.0,0.00043835,2]
[314426187,1708332643224,-500.0,0.00043836,7]
[314426189,1708332643236,-165.770455,0.00043836,14]
[314426191,1708332643245,-187.27056,0.00043836,20]
[314426193,1708332643254,-618.02,0.00043889,4]
[314426195,1708332643264,-291.0,0.0004389,2]
[314426197,1708332643273,-250.0,0.00043899,7]
[314426198,1708332643283,-610.41,0.00043899,4]
[314426200,1708332643292,-164.66759993,0.00043899,2]
[314426202,1708332643302,-150.0,0.000439,20]
[314426204,1708332643311,-200.0,0.000439,20]
[314426207,1708332643321,-150.0,0.000439,19]
[314426208,1708332643331,-919.5895588,0.000439,5]
[314426210,1708332643342,-300.0,0.000439,5]
[314426212,1708332643352,-150.0,0.000439,19]
[314426214,1708332643363,-6078.5745243,0.00043957,2]
[314426216,1708332643372,-89366.6618067,0.0004396,10]
[314426219,1708332643383,-150.01,0.00043969,2]
[314426221,1708332643393,-3319.32799788,0.00043969,2]
[314426223,1708332643403,-8705.0,0.0004397,2]
[314426224,1708332643412,-89366.6618067,0.0004398,10]
[314426227,1708332643422,-200.0,0.00043987,23]
[314426229,1708332643432,-500.0,0.00043989,4]
[314426231,1708332643442,-610.41,0.00043989,4]
[314426233,1708332643452,-89366.6618067,0.0004399,10]
[314426235,1708332643462,-2972.08293337,0.00043999,120]
[314426237,1708332643473,-500.0,0.00043999,4]
[314426239,1708332643482,-610.41,0.00043999,4]
[314426241,1708332643497,-100000.0,0.00044,14]
[314426243,1708332643508,-7000.0,0.00044,10]
[314426245,1708332643518,-4000.0,0.00044,17]
[314426248,1708332643531,-5000.0,0.00044,30]
[314426250,1708332643540,-500.0,0.00044,5]
[314426252,1708332643550,-86329.04595184,0.00044,8]
[314426254,1708332643559,-500.0,0.00044,7]
[314426256,1708332643569,-4639.40173799,0.00044,4]
[314426258,1708332643578,-12625.0,0.00044,2]
[314426260,1708332643588,-300.0,0.00044,24]
[314426261,1708332643597,-33648.49813584,0.00044,2]
[314426264,1708332643608,-357.899986,0.00044,45]
[314426266,1708332643617,-250.0,0.00044,5]
[314426268,1708332643626,-250.0,0.00044,120]
[314426270,1708332643636,-160.0,0.00044,89]
[314426272,1708332643645,-156.37480484,0.00044,45]
[314426274,1708332643654,-303.62,0.00044,2]
[314426275,1708332643663,-300.697826,0.00044,5]
[314426277,1708332643672,-408.6834748,0.00044033,30]
[314426279,1708332643682,-184.15372431,0.00044036,30]
[314426282,1708332643691,-248.69368779,0.00044039,30]
[314426284,1708332643700,-236.2590034,0.00044042,30]
[314426286,1708332643709,-200.0,0.000441,2]
[314426288,1708332643719,-200.0,0.000441,2]
[314426289,1708332643729,-302.0,0.00044162,4]
[314426292,1708332643741,-313.21,0.00044186,2]
[314426294,1708332643750,-206.84301561,0.00044242,2]
[314426296,1708332643760,-194.62110023,0.00044384,60]
[314426298,1708332643769,-197.0,0.0004439,3]
[314426300,1708332643778,-153.3098307,0.00044398,30]
[314426302,1708332643787,-310.212552,0.000444,20]
[314426304,1708332643797,-1000.0,0.000444,13]
[314426306,1708332643806,-150.0,0.00044412,2]
[314426308,1708332643816,-14316.91799,0.0004444,3]
[314426310,1708332643825,-500.0,0.00044447,7]
[314426312,1708332643835,-5811.35891188,0.000445,30]
[314426314,1708332643844,-521.06,0.00044526,2]
[314426316,1708332643853,-200.0,0.000446,19]
[314426318,1708332643862,-889.62652836,0.00044637,5]
[314426320,1708332643871,-800.0,0.00044657,2]
[314426321,1708332643880,-165.770455,0.00044658,14]
[314426322,1708332643889,-5670.08192709,0.00044673,6]
[314426323,1708332643898,-206.84301561,0.000448,2]
[314426324,1708332643907,-1124.845011,0.000448,20]
[314426325,1708332643917,-1000.0,0.000448,14]
[314426326,1708332643926,-404.671358,0.000448,2]
[314426327,1708332643935,-1000.0,0.0004482,20]
[314426328,1708332643944,-193.37,0.00044833,2]
[314426329,1708332643954,-1000.0,0.0004484,20]
[314426330,1708332643966,-523.05739358,0.0004484,2]
[314426331,1708332643976,-1069.42821694,0.0004484,2]
[314426332,1708332643986,-89366.6618067,0.0004484,10]
[314426333,1708332643996,-422.63970033,0.00044841,2]
[314426334,1708332644006,-1000.0,0.0004486,20]
[314426335,1708332644015,-500.0,0.0004486,4]
[314426336,1708332644024,-226.0,0.00044877,90]
[314426337,1708332644034,-1000.0,0.0004488,20]
[314426338,1708332644043,-500.0,0.00044889,30]
[314426339,1708332644053,-610.41,0.00044899,4]
[314426340,1708332644062,-21002.0,0.000449,30]
[314426341,1708332644071,-1000.0,0.000449,20]
[314426342,1708332644081,-919.5895588,0.000449,6]
[314426343,1708332644090,-356.849684,0.000449,6]
[314426344,1708332644099,-604.0,0.00044904,7]
[314426345,1708332644108,-1000.0,0.0004492,20]
[314426346,1708332644118,-19978.65408813,0.00044939,2]
[314426347,1708332644127,-1000.0,0.0004494,20]
[314426348,1708332644137,-194.62110023,0.00044959,60]
[314426349,1708332644147,-152.65879756,0.00044959,10]
[314426350,1708332644156,-1000.0,0.0004496,20]
[314426351,1708332644166,-5931.0351991,0.00044969,2]
[314426352,1708332644176,-5140.41399281,0.0004498,2]
[314426353,1708332644185,-1000.0,0.0004498,20]
[314426354,1708332644195,-500.0,0.0004498,4]
[314426355,1708332644205,-200.0,0.00044987,24]
[314426356,1708332644215,-310.0,0.0004499,2]
[314426357,1708332644227,-750.0,0.00044995,7]
[314426358,1708332644239,-150.0,0.00044997,2]
[314426359,1708332644248,-1986.80624195,0.00044997,2]
[314426360,1708332644258,-500.0,0.00044999,4]
[314426361,1708332644268,-610.41,0.00044999,4]
[314426362,1708332644279,-610.41,0.00044999,4]
[314426363,1708332644288,-404.92800675,0.00045,4]
[314426364,1708332644298,-1258.7950058,0.00045,30]
[314426365,1708332644308,-755.0,0.00045,30]
[314426366,1708332644318,-29532.21986495,0.00045,30]
[314426367,1708332644327,-155.0,0.00045,7]
[314426368,1708332644337,-500.0,0.00045,7]
[314426369,1708332644347,-500.0,0.00045,7]
[314426370,1708332644356,-500.0,0.00045,7]
[314426371,1708332644365,-107542.31210252,0.00045,10]
[314426372,1708332644375,-968.74126872,0.00045,7]
[314426373,1708332644385,-300.0,0.00045,25]
[314426374,1708332644395,-52129.34204189,0.00045,2]
[314426375,1708332644405,-3858.62633962,0.00045,2]
[314426376,1708332644415,-503.74,0.00045,3]
[314426377,1708332644425,-5540.0,0.00045,30]
[314426378,1708332644435,-2100.0,0.00045,7]
[314426379,1708332644445,-16000.0,0.00045,14]
[314426380,1708332644454,-155.17774195,0.00045,4]
[314426381,1708332644463,-8077.73578241,0.00045,2]
[314426382,1708332644473,-523.8721077,0.00045,7]
[314426383,1708332644483,-3944.11036068,0.00045,10]
[314426384,1708332644494,-500.0,0.00045,10]
[314426385,1708332644504,-1808.77526575,0.00045,10]
[314426386,1708332644517,-28141.3959294,0.00045,10]
[314426387,1708332644526,-114172.41860072,0.00045,10]
[314426388,1708332644535,-5000.0,0.00045,120]
[314426389,1708332644544,-831.4456099,0.00045,2]
[314426390,1708332644553,-1736.356122,0.00045,17]
[314426391,1708332644563,-46035.65657829,0.00045,30]
[314426392,1708332644573,-1000.0,0.00045,20]
[314426393,1708332644582,-500.0,0.00045139,4]
[314426394,1708332644591,-70445.3132,0.0004514,30]
[314426395,1708332644601,-824.83,0.00045149,2]
[314426396,1708332644610,-1000.0,0.000452,15]
[314426397,1708332644620,-251.82,0.00045205,2]
[314426398,1708332644629,-56571.71884848,0.0004521,30]
[314426399,1708332644638,-610.41,0.00045314,4]
[314426400,1708332644647,-103025.80265298,0.00045315,5]
[314426401,1708332644656,-152.46,0.0004532,2]
[314426402,1708332644666,-1038.71496007,0.000454,7]
[314426403,1708332644675,-250.0,0.00045415,2]
[314426404,1708332644684,-500.0,0.00045415,2]
[314426405,1708332644694,-986.80430191,0.00045415,30]
[314426406,1708332644703,-2947.71285112,0.00045415,60]
[314426407,1708332644713,-3136.91101157,0.00045415,60]
[314426408,1708332644723,-632.33529334,0.00045415,35]
[314426409,1708332644732,-1849.53051842,0.00045415,35]
[314426410,1708332644744,-150.0,0.00045422,2]
[314426411,1708332644754,-500.0,0.00045437,30]
[314426412,1708332644763,-500.0,0.00045478,4]
[314426413,1708332644772,-800.0,0.00045479,2]
[314426414,1708332644782,-165.770455,0.00045479,14]
[314426415,1708332644791,-150.0,0.0004549,2]
[314426416,1708332644800,-194.62110023,0.00045507,60]
[314426417,1708332644810,-155.87937752,0.0004554,2]
[314426418,1708332644819,-1000.0,0.00045543,7]
[314426419,1708332644828,-200.0,0.000456,20]
[314426420,1708332644837,-152.0,0.00045611,6]
[314426421,1708332644847,-299.99999901,0.000457,30]
[314426422,1708332644856,-5670.08192709,0.0004573,7]
[314426423,1708332644865,-385.41838719,0.0004575,30]
[314426424,1708332644875,-278.24319627,0.000458,120]
[314426425,1708332644914,-465.94,0.00045828,15]
[314426426,1708332644923,-150.0,0.0004583,20]
[314426427,1708332644933,-313.21,0.0004583,2]
[314426428,1708332644943,-490.0,0.0004589,2]
[314426429,1708332645158,-379.99,0.000459,2]
[314426430,1708332645169,-380.0,0.000459,2]
[314426431,1708332645179,-380.0,0.000459,2]
[314426432,1708332645189,-380.0,0.000459,2]
[314426433,1708332645199,-380.0,0.000459,2]
[314426434,1708332645208,-380.0,0.000459,2]
[314426435,1708332645218,-380.0,0.000459,2]
[314426436,1708332645228,-380.0,0.000459,2]
[314426437,1708332645239,-319.61,0.000459,2]
[314426438,1708332645248,-919.5895588,0.000459,7]
[314426439,1708332645258,-507.53762658,0.0004592,14]
[314426440,1708332645268,-500.0,0.0004592,14]
[314426441,1708332645277,-390.64725408,0.00045952,40]
[314426442,1708332645287,-7770.88927153,0.0004598,30]
[314426443,1708332645297,-610.41,0.00045985,4]
[314426444,1708332645306,-500.0,0.00045985,30]
[314426445,1708332645316,-3009.5430956,0.00045986,2]
[314426446,1708332645326,-4761.5014748,0.0004599,2]
[314426447,1708332645335,-394.0,0.0004599,2]
[314426448,1708332645345,-500.0,0.00046,10]
[314426449,1708332645354,-500.0,0.00046,7]
[314426450,1708332645364,-264.13188602,0.00046,18]
[314426451,1708332645373,-810.0,0.00046,2]
[314426452,1708332645383,-46379.72512623,0.00046,30]
[314426453,1708332645392,-2064.0,0.00046,30]
[314426454,1708332645401,-291.53,0.00046,15]
[314426455,1708332645410,-280.0,0.00046,101]
[314426456,1708332645419,-210.31019632,0.00046,2]
[314426457,1708332645428,-1000.0,0.00046,17]
[314426458,1708332645438,-2040.90558036,0.00046,30]
[314426459,1708332645448,-46560.7628489,0.0004601,2]
[314426460,1708332645457,-1839.7440397,0.0004601,2]
[314426461,1708332645466,-1208.0,0.00046041,30]
[314426462,1708332645475,-84558.8046486,0.00046052,2]
[314426463,1708332645484,-663.7457613,0.00046052,2]
[314426464,1708332645495,-157.869331,0.00046084,30]
[314426465,1708332645504,-1250.0,0.0004609,7]
[314426466,1708332645514,-200.0,0.000462,2]
[314426467,1708332645523,-200.0,0.000462,2]
[314426468,1708332645533,-889.62652836,0.00046216,5]
[314426469,1708332645542,-800.0,0.00046301,2]
[314426470,1708332645551,-165.770455,0.00046301,14]
[314426471,1708332645560,-222.92992165,0.0004635,2]
[314426472,1708332645569,-523.05739356,0.0004637,2]
[314426473,1708332645578,-1069.42821694,0.0004637,2]
[314426474,1708332645587,-150.0,0.00046431,2]
[314426475,1708332645596,-390.64725405,0.00046439,41]
[314426476,1708332645606,-212.0,0.000465,2]
[314426477,1708332645615,-500.0,0.00046533,30]
[314426478,1708332645625,-50091.353872,0.0004654,7]
[314426479,1708332645634,-666.0,0.0004656,4]
[314426480,1708332645643,-200.0,0.000466,21]
[314426481,1708332645652,-154.32766975,0.00046611,31]
[314426482,1708332645661,-1500.0,0.00046638,7]
[314426483,1708332645670,-732.0,0.0004669,2]
[314426484,1708332645680,-2006.0,0.000467,115]
[314426485,1708332645688,-5783.4958738,0.00046741,2]
[314426486,1708332645697,-488.60279999,0.00046772,4]
[314426487,1708332645706,-610.41,0.00046772,4]
[314426488,1708332645715,-3009.5430956,0.00046773,2]
[314426489,1708332645723,-4761.5014748,0.00046773,2]
[314426490,1708332645732,-78846.587526,0.00046773,2]
[314426491,1708332645742,-618.9076167,0.00046773,2]
[314426492,1708332645751,-45430.6387535,0.00046773,2]
[314426493,1708332645759,-1750.391509,0.00046773,2]
[314426494,1708332645768,-5670.08192709,0.00046787,8]
[314426495,1708332645777,-521.06,0.0004679,2]
[314426496,1708332645786,-813.0,0.0004679,7]
[314426497,1708332645795,-1000.0,0.000468,19]
[314426498,1708332645805,-1986.80624195,0.00046802,2]
[314426499,1708332645814,-610.41,0.00046804,4]
[314426500,1708332645822,-610.41,0.00046804,4]
[314426501,1708332645831,-197.50657589,0.00046804,6]
[314426502,1708332645840,-150.0,0.00046804,6]
[314426503,1708332645849,-1031.46600382,0.00046805,7]
[314426504,1708332645858,-533522.92857562,0.00046805,7]
[314426505,1708332645866,-553.53,0.00046832,2]
[314426506,1708332645875,-5250.0,0.0004688,29]
[314426507,1708332645884,-1789.0,0.0004689,2]
[314426508,1708332645893,-811.0,0.0004689,2]
[314426509,1708332645902,-919.5895588,0.000469,8]
[314426510,1708332645910,-7000.0,0.00046933,2]
[314426511,1708332645919,-3009.5430956,0.00046936,2]
[314426512,1708332645928,-4761.5014748,0.00046936,2]
[314426513,1708332645936,-73134.3704035,0.00046936,2]
[314426514,1708332645945,-574.0694722,0.00046936,2]
[314426515,1708332645953,-44300.514658,0.00046936,2]
[314426516,1708332645966,-5635.9565485,0.00046936,2]
[314426517,1708332645974,-1661.0389782,0.00046936,2]
[314426518,1708332645983,-1429.859308,0.0004694,22]
[314426519,1708332645993,-1000.0,0.0004696,22]
[314426520,1708332646002,-1986.80624195,0.00046965,2]
[314426521,1708332646011,-610.41,0.00046967,4]
[314426522,1708332646021,-610.41,0.00046967,4]
[314426523,1708332646030,-3009.5430956,0.00046968,2]
[314426524,1708332646040,-3009.5430956,0.00046968,2]
[314426525,1708332646049,-3009.5430956,0.00046968,2]
[314426526,1708332646058,-4761.5014748,0.00046968,2]
[314426527,1708332646068,-4761.5014748,0.00046968,2]
[314426528,1708332646077,-4761.5014748,0.00046968,2]
[314426529,1708332646086,-67422.1532809,0.00046968,2]
[314426530,1708332646095,-61709.9361584,0.00046968,2]
[314426532,1708332646105,-55997.7190359,0.00046968,2]
[314426533,1708332646114,-529.2313277,0.00046968,2]
[314426535,1708332646123,-484.3931832,0.00046968,2]
[314426537,1708332646132,-439.5550387,0.00046968,2]
[314426539,1708332646141,-43170.3905626,0.00046968,2]
[314426540,1708332646151,-42040.2664671,0.00046968,2]
[314426542,1708332646160,-40910.1423717,0.00046968,2]
[314426544,1708332646169,-5488.4172232,0.00046968,2]
[314426546,1708332646179,-5340.8778979,0.00046968,2]
[314426547,1708332646188,-1571.6864474,0.00046968,2]
[314426549,1708332646197,-1482.3339167,0.00046968,2]
[314426551,1708332646206,-1392.9813859,0.00046968,2]
[314426553,1708332646215,-150.5,0.0004697,30]
[314426555,1708332646224,-173.0,0.0004697,3]
[314426556,1708332646233,-150.5,0.0004697,120]
[314426558,1708332646244,-213.15,0.0004697,30]
[314426560,1708332646255,-150.5,0.0004697,120]
[314426562,1708332646264,-150.5,0.0004697,120]
[314426564,1708332646274,-150.5,0.0004697,120]
[314426565,1708332646283,-150.5,0.0004698,30]
[314426566,1708332646292,-173.0,0.0004698,3]
[314426567,1708332646301,-150.5,0.0004698,120]
[314426568,1708332646310,-150.5,0.0004698,120]
[314426569,1708332646320,-150.5,0.0004698,120]
[314426570,1708332646329,-150.5,0.0004698,120]
[314426571,1708332646339,-1000.0,0.0004698,22]
[314426572,1708332646348,-200.0,0.00046987,73]
[314426573,1708332646358,-150.5,0.0004699,30]
[314426574,1708332646367,-173.0,0.0004699,3]
[314426575,1708332646376,-150.5,0.0004699,120]
[314426576,1708332646385,-293.41,0.0004699,120]
[314426577,1708332646395,-150.5,0.0004699,120]
[314426578,1708332646404,-211.05,0.0004699,120]
[314426579,1708332646413,-150.5,0.0004699,120]
[314426580,1708332646422,-159.34,0.0004699,120]
[314426581,1708332646431,-241.24,0.0004699,120]
[314426582,1708332646441,-150.5,0.0004699,120]
[314426583,1708332646451,-9934.03120975,0.00046997,2]
[314426584,1708332646461,-159.506277,0.00046999,60]
[314426585,1708332646470,-160.37213762,0.00046999,60]
[314426586,1708332646479,-610.41,0.00046999,4]
[314426587,1708332646489,-610.41,0.00046999,4]
[314426588,1708332646498,-610.41,0.00046999,4]
[314426589,1708332646507,-610.41,0.00046999,4]
[314426590,1708332646516,-610.41,0.00046999,4]
[314426591,1708332646525,-610.41,0.00046999,4]
[314426592,1708332646534,-610.51349163,0.00046999,4]
[314426593,1708332646543,-197.50657589,0.00046999,6]
[314426594,1708332646552,-150.0,0.00046999,6]
[314426595,1708332646561,-197.50657589,0.00046999,6]
[314426596,1708332646570,-150.0,0.00046999,6]
[314426597,1708332646579,-100000.0,0.00047,37]
[314426598,1708332646588,-1317.96884547,0.00047,12]
[314426599,1708332646597,-9842.33601426,0.00047,28]
[314426600,1708332646607,-200.0,0.00047,22]
[314426601,1708332646616,-1857408.23404146,0.00047,30]
[314426602,1708332646625,-10000.0,0.00047,5]
[314426603,1708332646634,-298.0,0.00047,2]
[314426604,1708332646644,-500.0,0.00047,2]
[314426605,1708332646654,-3000.0,0.00047,60]
[314426606,1708332646663,-4000.0,0.00047,30]
[314426607,1708332646673,-151.0,0.00047,14]
[314426608,1708332646682,-151.0,0.00047,14]
[314426609,1708332646691,-151.0,0.00047,14]
[314426610,1708332646700,-221.173017,0.00047,14]
[314426611,1708332646709,-221.173017,0.00047,14]
[314426612,1708332646718,-151.0,0.00047,14]
[314426613,1708332646727,-151.0,0.00047,14]
[314426614,1708332646736,-151.0,0.00047,14]
[314426615,1708332646746,-1497.716068,0.00047,14]
[314426616,1708332646755,-1000.0,0.00047,22]
[314426617,1708332646764,-1497.716068,0.00047,14]